Cogmind - Beta 15 @@@ ROGUE MODE // 2025.10.06 @ 23:53:43 Player: Archivar Result: Destroyed by Y-54 Guardian with Gatling Laser Performance ------------- Evolutions (3) 1500 Regions Visited (6) 1200 Robots Destroyed (13) 65 Value Destroyed (353) 353 Prototype IDs (1) 20 Alien Tech Used (0) 0 Bonus (-99) -99 TOTAL SCORE: 3039 Bonus ------- Friendly Fire -99 Cogmind --------- Core Integrity 0/700 Matter 8/300 Energy 99/100 System Corruption 1% Temperature Cool (6) Movement Core (50) Location -7/Storage Parts ------- > --- POWER (2) -------- (None) > --- PROPULSION (4) --- (None) > --- UTILITY (4) ------ (None) > --- WEAPON (3) ------- (None) > --- INVENTORY (5) ---- Light Deuterium Engine Cesium-ion Thruster Microactuators Hardened Medium Armor Plating Advanced Beam Rifle Peak State ------------ > --- POWER ------------ Nuclear Core > --- PROPULSION ------- VSS Leg VSS Leg VSS Leg VSS Leg > --- UTILITY ---------- Medium Storage Unit Advanced Visual Processing Unit Core Analyzer > --- WEAPON ----------- Advanced Beam Rifle > --- INVENTORY -------- Light Deuterium Engine Cesium-ion Thruster Microactuators Hardened Medium Armor Plating Advanced Beam Rifle Advanced Beam Rifle [Rating: 29] Favorites ----------- Power Ion Engine Engine Ion Engine Power Core Nuclear Core Propulsion Aluminum Leg Leg Aluminum Leg Wheel Wheel Flight Unit VTOL Module Utility Medium Storage Unit Device Improved Terrain Scanner Storage Medium Storage Unit Processor Targeting Computer Protection Scrap Shield Weapon Grenade Launcher Energy Gun Subdweller Laser Ballistic Gun Light Assault Rifle Launcher Grenade Launcher Special Weapon Mining Laser Slashing Weapon Greatsword Build | -11 -10 -10 -10 -8 -7 -7 ------- Run | Yrd Mat Min Sub Mat Fac Sto Slots Evolved 6 | . . . . 4 2 . Power 1 | . . . . . 1 . Propulsion 2 | . . . . 2 . . Utility 2 | . . . . 2 . . Weapon 1 | . . . . . 1 . Parts Attached 37 | 7 7 . 4 17 2 . Power 2 | 1 . . . 1 . . Engine 1 | 1 . . . . . . Core 1 | . . . . 1 . . Reactor . | . . . . . . . Propulsion 10 | 2 . . 2 6 . . Treads . | . . . . . . . Leg 6 | 2 . . . 4 . . Wheel 2 | . . . 2 . . . Hover . | . . . . . . . Flight 2 | . . . . 2 . . Utility 13 | 2 2 . 1 8 . . Device 3 | 1 . . . 2 . . Storage 3 | 1 1 . . 1 . . Processor 6 | . 1 . . 5 . . Hackware . | . . . . . . . Protection 1 | . . . 1 . . . Artifact . | . . . . . . . Weapon 12 | 2 5 . 1 2 2 . Energy Gun 3 | . . . 1 2 . . Energy Cannon . | . . . . . . . Ballistic Gun 5 | 2 2 . . . 1 . Ballistic Cannon . | . . . . . . . Launcher 2 | . 2 . . . . . Special Weapon 1 | . 1 . . . . . Impact Weapon . | . . . . . . . Slashing Weapon 1 | . . . . . 1 . Piercing Weapon . | . . . . . . . Special Melee Weapon . | . . . . . . . Unidentified Prototypes 1 | . . . . 1 . . Parts Lost 2 | . 1 . 1 . . . Power . | . . . . . . . Propulsion 1 | . . . 1 . . . Utility 1 | . 1 . . . . . Weapon . | . . . . . . . Highest Loss Streak 1 | . 1 . 1 . . . To Critical Strikes . | . . . . . . . Average Backups 3 | . 2 5 4 4 5 5 Power . | . . . . . 1 1 Propulsion . | . . 1 . . 1 1 Utility 1 | . 1 1 1 1 2 2 Weapon 1 | . . 3 2 1 1 1 Tool/Special . | . . . . . . . Unused Backups 9 | . 1 . . 4 . 4 Power 2 | . 1 . . . . 1 Propulsion . | . . . . . . . Utility 4 | . . . . 2 . 2 Weapon 3 | . . . . 2 . 1 Tool/Special . | . . . . . . . Average Slot Usage (%) 63 | . 97 100 83 52 5 . Engine 8 | . 14 14 14 3 . . Leg 15 | . 28 28 11 14 . . Wheel 2 | . . . 8 4 . . Device 2 | . 9 . . . . . Storage 7 | . 14 14 7 3 . . Processor 5 | . 1 14 7 11 . . Protection 1 | . . . 7 2 . . Energy Gun 1 | . . . 7 3 . . Ballistic Gun 6 | . 22 . . . 1 . Launcher 8 | . 4 28 20 4 . . Peak Build Rating 29 | 9 9 7 11 29 15 1 Average Rating 8 | 5 8 7 8 17 3 1 On Entrance 5 | . 9 7 7 10 3 1 Naked Turns 260 | . . . . 58 131 71 Heaviest Build 30 | 14 21 21 30 30 9 . Greatest Support 48 | 20 20 20 30 48 4 3 Greatest Overweight (x) 2 | . 1 1 2 1 2 . Average Overweight (x) . | . . 1 1 . . . Largest Inventory Capacity 10 | 8 10 10 10 10 5 5 Average Capacity 7 | 7 9 10 7 7 5 5 Most Carried 8 | 2 7 5 8 7 5 5 Average Carried 3 | . 2 5 5 4 5 5 Final Capacity 10 | 8 10 10 5 5 5 5 Final Carried 5 | . 5 5 4 5 5 5 Class Distribution -------------------- 100% | Mutant Dominant Class ---------------- Mutant | -10/Materials Mutant | -10/Mines Mutant | -10/Subcaves Mutant | -8/Materials Mutant | -7/Factory Mutant | -7/Storage Resources | -11 -10 -10 -10 -8 -7 -7 ----------- Run | Yrd Mat Min Sub Mat Fac Sto Matter Collected 474 | 302 103 . 61 . 8 . Remotely . | . . . . . . . Salvage Created 323 | 81 95 . 139 . 8 . Parts 20 | 3 9 . 8 . . . Haulers Intercepted . | . . . . . . . Recyclers Shooed 1 | . 1 . . . . . Parts Field Recycled . | . . . . . . . Retrieved Matter . | . . . . . . . Parts Self-Destructed . | . . . . . . . Prevented . | . . . . . . . Kills | -11 -10 -10 -10 -8 -7 -7 ------- Run | Yrd Mat Min Sub Mat Fac Sto Combat Hostiles Destroyed 10 | . 4 . 6 . . . Guns 4 | . 4 . . . . . AOE 6 | . . . 6 . . . Classes Destroyed 6 | 2 3 . 1 . . . Tunneler 1 | 1 . . . . . . Recycler 1 | 1 . . . . . . Operator 1 | . 1 . . . . . Swarmer 3 | . 3 . . . . . Grunt 1 | . 1 . . . . . Subdweller 6 | . . . 6 . . . Best Kill Streak 6 | 1 3 . 6 . . . Combat Bots Only 6 | . 3 . 6 . . . Max Kills in Single Turn 3 | 1 2 . 3 . . . Gunslinging 1 | . 1 . . . . . Exploded 3 | . . . 3 . . . Melee . | . . . . . . . Uniques/NPCs Destroyed . | . . . . . . . Combat | -11 -10 -10 -10 -8 -7 -7 -------- Run | Yrd Mat Min Sub Mat Fac Sto Hostile Shots Fired 239 | . 33 . 15 65 81 45 Missed 110 | . 8 . 4 24 46 28 Hits 129 | . 25 . 11 41 35 17 Projectile 129 | . 25 . 11 41 35 17 AOE 1 | . . . 1 . . . Critical Strikes 6 | . . . 1 4 . 1 Damage Taken 1950 | . 424 . 282 531 479 234 Core 1309 | . 93 . 79 436 467 234 Absorbed by Shields . | . . . . . . . Regen/Repaired (Parts) 2 | . 2 . . . . . Core Remaining (%) 50 | 100 . . 31 20 . . Volleys Fired 45 | 8 25 . 7 3 2 . Largest 2 | 2 2 . 2 1 1 . Hottest 100 | 40 100 . 60 61 28 . Shots Fired 75 | 16 44 . 10 3 2 . Gun 63 | 16 38 . 4 3 2 . Cannon . | . . . . . . . Launcher 6 | . . . 6 . . . Special 6 | . 6 . . . . . Kinetic 56 | 16 38 . . . 2 . Thermal 13 | . 6 . 4 3 . . Explosive 6 | . . . 6 . . . Electromagnetic . | . . . . . . . Robot Hit Streak 11 | 5 9 . 11 3 1 . Robot Miss Streak 3 | 2 3 . 1 1 1 . Penetration Max . | . . . . . . . Secondary Targets 1 | . 1 . . . . . Max Gunslinging Chain 1 | . 1 . . . . . Shots Hit Robots 45 | 11 27 . 4 2 1 . Core Hits 31 | 3 11 . 15 2 . . Critical Kills . | . . . . . . . Critical Parts Destroyed . | . . . . . . . Critical Strikes 1 | . . . . 1 . . Burn 1 | . . . . 1 . . Melee Attacks . | . . . . . . . Impact . | . . . . . . . Slashing . | . . . . . . . Piercing . | . . . . . . . Sneak Attacks . | . . . . . . . Combat Hostiles . | . . . . . . . Follow-up Attacks . | . . . . . . . Damage Inflicted 1846 | 111 291 . 1351 75 18 . Guns 456 | 111 287 . . 40 18 . Cannons . | . . . . . . . Explosions 1351 | . . . 1351 . . . Melee . | . . . . . . . Ramming 39 | . 4 . . 35 . . Kinetic 416 | 111 287 . . . 18 . Thermal 40 | . . . . 40 . . Explosive 1351 | . . . 1351 . . . Electromagnetic . | . . . . . . . Impact . | . . . . . . . Slashing . | . . . . . . . Piercing . | . . . . . . . Highest Corruption 3 | . 3 3 3 . 1 1 Average Corruption 2 | . 3 3 3 . 1 1 Corruption Purged . | . . . . . . . Corruption Blocked . | . . . . . . . Effects 8 | . 1 2 4 . . 1 Message Errors 2 | . 1 . 1 . . . Matter Fused 2 | . . 1 1 . . . Data Loss (minor) 4 | . . 1 2 . . 1 Overload Shots . | . . . . . . . Overflow Damage 7 | . . . 7 . . . Projectiles . | . . . . . . . Explosions 7 | . . . 7 . . . Melee . | . . . . . . . Knockbacks . | . . . . . . . Impact . | . . . . . . . Kinetic . | . . . . . . . Secondary . | . . . . . . . Self-Inflicted Damage 23 | . . . 19 4 . . Shots 1 | . . . 1 . . . Rammed 3 | . . . . 3 . . Targets Rammed 9 | . 1 . . 8 . . Kicked 6 | . 1 . . 5 . . Crushed . | . . . . . . . Highest Temperature 102 | . 102 . . 12 . . Average Temperature 34 | . 39 . . 8 . . Received Heat Transfer 198 | . 36 . 18 108 18 18 Siege Activations . | . . . . . . . Martial Activations . | . . . . . . . Shielding Activations . | . . . . . . . Robots Disrupted . | . . . . . . . Combat Hostiles . | . . . . . . . Robots Corrupted . | . . . . . . . Combat Hostiles . | . . . . . . . Parts Fried . | . . . . . . . Impact Corruptions . | . . . . . . . Robots Melted . | . . . . . . . Combat Hostiles . | . . . . . . . Parts Melted . | . . . . . . . Heat Transferred 148 | . . . . 148 . . Parts Sabotaged . | . . . . . . . Parts Stolen . | . . . . . . . Parts Stripped . | . . . . . . . Power Chain Reactions . | . . . . . . . Alert | -11 -10 -10 -10 -8 -7 -7 ------- Run | Yrd Mat Min Sub Mat Fac Sto Maximum Alert Level . | . . . . . . . Low Security (%) 100 | 100 100 100 . 100 100 100 Level 1 . | . . . . . . . Level 2 . | . . . . . . . Level 3 . | . . . . . . . Level 4 . | . . . . . . . Level 5 . | . . . . . . . High Security . | . . . . . . . Max Security . | . . . . . . . Peak Influence 75 | 5 75 . . 40 70 44 Initial 27 | . . . . . 18 27 Average 10 | . 21 . . 3 9 28 Influence Increases 333 | 10 121 . . 60 105 37 Destroy 0b10 Robot/C 80 | . 80 . . . . . Destroy 0b10 Robot/NC 15 | 10 5 . . . . . Destroy Leader 20 | . 20 . . . . . Successful Hack 7 | . . . . . . 7 Disable Machine 30 | . 15 . . . 15 . Destroy Structure 1 | . 1 . . . . . Partial Spotted 30 | . . . . . . 30 Lose Combat Pursuer 150 | . . . . 60 90 . Influence Decreases 299 | 10 121 . . 20 85 63 Entered New Map 55 | . . . . . 22 33 Time Decay 243 | 10 120 . . 20 63 30 Lost Part 1 | . 1 . . . . . Squads Dispatched 6 | . 1 . . 2 3 . Investigation 1 | . . . . . 1 . Extermination 1 | . . . . . 1 . Reinforcement 4 | . 1 . . 2 1 . Assault . | . . . . . . . Garrison . | . . . . . . . Intercept . | . . . . . . . Searches Triggered . | . . . . . . . Construction Impeded . | . . . . . . . Haulers Reinforced . | . . . . . . . Active Scanning Responses . | . . . . . . . Cargo Convoy Interrupts . | . . . . . . . Stealth | -11 -10 -10 -10 -8 -7 -7 --------- Run | Yrd Mat Min Sub Mat Fac Sto Distress Signals 2 | . . . . 2 . . Communications Jammed . | . . . . . . . Distress Signals . | . . . . . . . Times Spotted 58 | . 13 . 9 18 12 6 Peak Tracking Total 14 | . 3 . 6 14 7 7 Tactical Retreats 5 | . . . . 2 3 . Traps | -11 -10 -10 -10 -8 -7 -7 ------- Run | Yrd Mat Min Sub Mat Fac Sto Traps Triggered 4 | . . . . 2 2 . Indirectly . | . . . . . . . Trap Hack Attempts . | . . . . . . . Triggered . | . . . . . . . Disarmed . | . . . . . . . Reprogrammed . | . . . . . . . Reused . | . . . . . . . Traps Extracted . | . . . . . . . Installed . | . . . . . . . Triggered . | . . . . . . . Machines | -11 -10 -10 -10 -8 -7 -7 ---------- Run | Yrd Mat Min Sub Mat Fac Sto Machines Disabled 2 | . 1 . . . 1 . Max in Single Turn 1 | . 1 . . . 1 . Machines Repaired . | . . . . . . . Machines Dismantled . | . . . . . . . Machines Sabotaged . | . . . . . . . Overloaded Fab Kills . | . . . . . . . Hacking | -11 -10 -10 -10 -8 -7 -7 --------- Run | Yrd Mat Min Sub Mat Fac Sto Machines Accessed 3 | . 2 . . . . 1 Terminals 1 | . . . . . . 1 Fabricators . | . . . . . . . Repair Stations 1 | . 1 . . . . . Recycling Units 1 | . 1 . . . . . Scanalyzers . | . . . . . . . Garrison Access . | . . . . . . . Total Hacks 8 | . 6 . . . . 2 Successful 5 | . 3 . . . . 2 Failed 3 | . 3 . . . . . Catastrophic . | . . . . . . . Database Lockouts . | . . . . . . . Manual . | . . . . . . . Terminals 2 | . . . . . . 2 Fabricators . | . . . . . . . Repair Stations 5 | . 5 . . . . . Recycling Units 1 | . 1 . . . . . Scanalyzers . | . . . . . . . Garrison Access . | . . . . . . . Terminal Hacks 2 | . . . . . . 2 Emergency Access Points 1 | . . . . . . 1 Extermination Status 1 | . . . . . . 1 Fabricator Hacks . | . . . . . . . Repair Station Hacks 2 | . 2 . . . . . Scan Component 1 | . 1 . . . . . Repair 1 | . 1 . . . . . Recycling Unit Hacks 1 | . 1 . . . . . Report Inventory 1 | . 1 . . . . . Scanalyzer . | . . . . . . . Garrison Access Hacks . | . . . . . . . Unauthorized Hacks . | . . . . . . . Terminals . | . . . . . . . Fabricators . | . . . . . . . Repair Stations . | . . . . . . . Recycling Units . | . . . . . . . Scanalyzers . | . . . . . . . Garrison Access . | . . . . . . . Data Cores Recovered . | . . . . . . . Used . | . . . . . . . Hacking Detections 1 | . 1 . . . . . Full Trace Events . | . . . . . . . Feedback Events . | . . . . . . . Feedback Blocked . | . . . . . . . Robot Schematics Acquired . | . . . . . . . Robots Built . | . . . . . . . Authchips . | . . . . . . . Time . | . . . . . . . Total Robot Build Rating . | . . . . . . . Part Schematics Acquired . | . . . . . . . Parts Built . | . . . . . . . Authchips . | . . . . . . . Time . | . . . . . . . Total Part Build Rating . | . . . . . . . Parts Repaired 1 | . 1 . . . . . Time 38 | . 38 . . . . . Parts Recycled . | . . . . . . . Recycled Matter . | . . . . . . . Retrieved Matter . | . . . . . . . Retrieved Components . | . . . . . . . Parts Scanalyzed . | . . . . . . . Part Schematics Acquired . | . . . . . . . Parts Damaged . | . . . . . . . Bothacking | -11 -10 -10 -10 -8 -7 -7 ------------ Run | Yrd Mat Min Sub Mat Fac Sto Used RIF Installer . | . . . . . . . Robots Hacked . | . . . . . . . Non-combat . | . . . . . . . Combat . | . . . . . . . Robot Hacks Applied . | . . . . . . . Relay Couplers Released . | . . . . . . . Fabnet Peak Effective % . | . . . . . . . Robots Rewired . | . . . . . . . Allies Hacked . | . . . . . . . Hacks Repelled . | . . . . . . . Allies | -11 -10 -10 -10 -8 -7 -7 -------- Run | Yrd Mat Min Sub Mat Fac Sto Total Allies . | . . . . . . . Largest Group . | . . . . . . . Highest-Rated Group . | . . . . . . . Highest-Rated Ally . | . . . . . . . Total Orders . | . . . . . . . Ally Attacks . | . . . . . . . Total Damage . | . . . . . . . Kills . | . . . . . . . Allies Corrupted . | . . . . . . . Allies Melted . | . . . . . . . Intel | -11 -10 -10 -10 -8 -7 -7 ------- Run | Yrd Mat Min Sub Mat Fac Sto Active Infowar (turns) 467 | 17 296 . . 154 . . Optics 154 | . . . . 154 . . Terrain 313 | 17 296 . . . . . Robot Analysis Total . | . . . . . . . Derelict Logs Recovered . | . . . . . . . Drone Launches . | . . . . . . . Drone Recoveries . | . . . . . . . Exploration | -11 -10 -10 -10 -8 -7 -7 ------------- Run | Yrd Mat Min Sub Mat Fac Sto Turns Passed 1748 | 169 446 168 274 315 305 71 Spaces Moved 1836 | 117 235 78 179 359 727 141 Core 522 | 10 . . . 110 261 141 Treads . | . . . . . . . Legs 596 | 107 235 78 52 124 . . Wheels 184 | . . . 127 57 . . Hover . | . . . . . . . Flight 534 | . . . . 68 466 . Fastest Speed 35 | 50 120 190 95 35 35 50 Average Speed 78 | 114 130 190 136 68 40 50 Slowest Speed 260 | 120 190 190 260 180 195 50 Overloaded Moves . | . . . . . . . Propulsion Burnouts . | . . . . . . . Robots Hopped 2 | . . . . . 2 . Potential Cave-ins . | . . . . . . . Cave-ins Triggered 1 | . 1 . . . . . Exploration Rate (%) 23 | 5 33 15 24 38 27 23 Regions Visited 6 Branch Regions 3 Pre-discovered Areas . | . . . . . . . Known Exits Taken . | . . . . . . . Unknown Exits Taken 6 | 1 1 1 1 1 1 . Scrap Searched . | . . . . . . . Spaces Dug 3 | . 3 . . . . . Terrain Destroyed 26 | . 5 . 21 . . . Melee . | . . . . . . . Projectile 5 | . 5 . . . . . AOE 21 | . . . 21 . . . Terrain Rammed . | . . . . . . . Walls Destroyed . | . . . . . . . Machines Disabled . | . . . . . . . Actions | -11 -10 -10 -10 -8 -7 -7 --------- Run | Yrd Mat Min Sub Mat Fac Sto Total 2056 | 138 320 98 198 431 730 141 Wait 57 | . 36 21 . . . . Move 1826 | 116 234 77 178 358 722 141 Hop 2 | . . . . . 2 . Pick Up 44 | 7 10 . 5 22 . . Fast Attach 4 | . . . . 2 2 . Attach 25 | 7 2 . 3 13 . . Detach 3 | . . . 1 2 . . Swap 13 | . 8 . 2 3 . . Drop 28 | . 4 . 2 20 2 . Fire 45 | 8 25 . 7 3 2 . Melee . | . . . . . . . Ram 3 | . . . . 3 . . Kick 6 | . 1 . . 5 . . Crush . | . . . . . . . Escape Stasis . | . . . . . . . Rewire . | . . . . . . . Trap . | . . . . . . . Miscellaneous . | . . . . . . . Route ------- -11/Scrapyard -10/Materials (discovered 2 exits: [*Mat] / [*Min]) -10/Mines (discovered 2 exits: [*Mat] / [*Sub]) -10/Subcaves -8/Materials -7/Factory (discovered 2 exits: [*Fac] / *Sto) -7/Storage History --------- Turn | Location | Event 3 | -11/Scrapyard | Discovered new exit (range 16) 170 | -11/Scrapyard | Entered Materials 216 | -10/Materials | Repaired Imp. Terrain Scanner 309 | -10/Materials | Build established: Mutant 470 | -10/Materials | Discovered new exit (range 10) 507 | -10/Materials | Crushed by falling debris 565 | -10/Materials | Discovered new exit (range 13) 616 | -10/Materials | Entered Mines 700 | -10/Mines | Discovered new exit (range 12) 769 | -10/Mines | Discovered new exit (range 9) 784 | -10/Mines | Entered Subcaves 859 | -10/Subcaves | Ambushed by swarm of Subdwellers 863 | -10/Subcaves | Ambushed by Subdwellers from Twisted Machinery 865 | -10/Subcaves | Core integrity fell below 50% 1003 | -10/Subcaves | Discovered new exit (range 13) 1058 | -10/Subcaves | Entered Materials 1058 | -8/Materials | Evolved 4 slots: Propulsion x2, Utility x2 1336 | -8/Materials | Core integrity fell below 50% 1362 | -8/Materials | Discovered new exit (range 16) 1373 | -8/Materials | Entered Factory 1373 | -7/Factory | Evolved 2 slots: Power x1, Weapon x1 1380 | -7/Factory | Discovered new exit (range 15) 1645 | -7/Factory | Core integrity fell below 50% 1670 | -7/Factory | Discovered new exit (range 15) 1678 | -7/Factory | Entered Storage 1732 | -7/Storage | Core integrity fell below 20% 1749 | -7/Storage | Destroyed by Y-54 Guardian with Gatling Laser Last Messages --------------- within the floor. 01547_ VTOL Module severed. 01623_ Triggered Alarm Trap. 01623_ An alarm sounds. 01623_ ALERT: Alarm triggered, dispatching investigation squad. 01670_ EXIT=FOUND [Achievement: Tourist] LOCATION=UNKNOWN GOAL=ESCAPE 01724_ System corrupted: Component data lost. 01730_ Connecting with Terminal... 01730_ Current location identified: Storage >>Access(Emergency) Found 1 emergency access door: (60,61) Map updated. >>Enumerate(Exterminations) Retrieving latest reported positions... No active extermination squads found. Map ----- +----------------------------------------------------+ | ?????????????????????????????????????????????????? | | ????????????????????????????????????????????###### | | ????????????????????????????????????????????? | | ????????????????????????????????????????????# """ | | ????????????????????????????????????????????# """ | | ????????????????????????????????????????????# """ | | ??????????????????????????????????????????#"" | | ??????????????????????????????????????????#"Y """ | | ????????????????????????????????????????????" """ | | ????????????????????????????????????????????# """ | | ????????????????????????????????????????????? | | ????????????????????????????????????????????###### | | ???????????????????????????????????????????####### | | ???????????????????????????????????????????# | | ???????????????????????????????????????????# " | | ???????????????????????????????????????????# """" | | ????????????????????????#+????????????###### "??? | | ????????????????????????# ######+###### !# "??? | | ????????????????????????# + ! # "?"" | | ????????????????????????# # # """ | | ????????????????????????# """"" # # | | ????????????????????????# ""T"" + #####+# | | ????????????????????????# # ## | | ??????????????????#+##### # ## | | ????????????# # ## | | ????????????# #####@#####"" ""# # ]?# | | ??????????????????????? ??#""G""# ##+######### | | ??????????????????????# """ ######## | | ??????????????????????# """ #??????# | | ??????????????????????# """ #??????# | | ??????????????????????# #??????# | | ??????????????????????# % #??????############## | | ??????????????????????#Y######???????????????????? | | ??????????????????????##?????????????????????????? | | ?????????????????????????????????????????????????? | | | | | | | | | | | | | | | | | | | | | | | | | | | | | | | +----------------------------------------------------+ Best States ------------- Heat Dissipation 34 Energy Generation 14 Energy Capacity 250 Matter Stores 300 Matter Capacity 300 Sight Range 20 Terrain Scan Range 16 Terrain Scan Density 10 Armor Coverage 800 Evasion (%) 63 Targeting Accuracy 5 Core Analysis 9 Item Schematics ----------------- None Robot Schematics ------------------ None Fabricated ------------ Nothing Repaired ---------- Imp. Terrain Scanner | 90% | -10/Materials Alien Tech Used ----------------- None Achievements -------------- Dramatic Entrance Tourist Unlikely Earthworm Challenges ------------ None Game ------ Seed CompactXenonDirector Manual? 0 Play Time 00:29:32 Cumulative 12.7 hours Start 2025.10.06 @ 23:24:48 End 2025.10.06 @ 23:53:43 Sessions 1 Manual Loads 0 Difficulty Rogue Special Mode None Game No. 31 Rogue 31 Adventurer 0 Explorer 0 Win Type - Total 1 Types 1/0/0/0/0/0/0/0/0/0 Lore% 3 Gallery% 21 Achievement% 8 Wizard Run 0 Options --------- Layout 1 ASCII 0 Keyboard 0 Movement Mouse Keybinds 0 Fullscreen 1 Font 32/SmallcapsGlow Map View 50x35 Zoom Use 0% Tactical HUD 1 Map Filters NONE Filters NONE Steam 1 RUN: 07afc2ba-bd56-4210-962e-356ea6ae2684